bitfinex/quotes_ETHUSD_20220115
["timestamp","ask_amount","ask_price","bid_price","bid_amount"]
[1642234973927,0.00903294,3318.2,3317.9,0.02336105]
[1642234974128,1.507598,3318.1,3317.9,0.02336105]
[1642234975125,1.9489537,3318.0,3317.9,0.02336105]
[1642234975328,3.01714362,3318.0,3317.9,0.02336105]
[1642234975826,4.95981877,3318.0,3317.9,0.02336105]
[1642234976029,0.7538591,3317.8,3317.4,0.02336424]
[1642234976474,0.7538591,3317.8,3317.5,0.00284211]
[1642234976674,2.70044854,3317.8,3317.5,0.00284211]
[1642234977075,0.7538591,3317.8,3317.6,0.028224]
[1642234977277,3.79507396,3318.0,3317.5,0.00284211]
[1642234977476,0.75386,3317.7,3317.4,0.02336424]
[1642234977678,0.75386,3317.7,3317.5,0.023262]
[1642234978077,1.50970742,3317.6,3317.5,0.023262]
[1642234978477,1.50970742,3317.6,3317.5,0.02610411]
[1642234981023,1.53384994,3317.6,3317.5,0.04948431]
[1642234983625,1.53384994,3317.6,3317.5,0.02622231]
[1642234984776,1.53384994,3317.6,3317.5,0.05363631]
[1642234990928,1.53384994,3317.6,3317.5,0.02622231]
[1642234991129,1.53384994,3317.6,3317.5,0.06087531]
[1642234993779,1.53384994,3317.6,3317.5,2.63846649]
[1642234993974,1.53384994,3317.6,3317.5,4.42409611]
[1642234995224,0.02414252,3317.6,3317.5,4.42409611]
[1642235001079,0.02414252,3317.6,3317.5,2.63846649]
[1642235008380,0.02414252,3317.6,3317.5,2.63562438]
[1642235010830,0.02414252,3317.6,3317.5,0.0580332]
[1642235011329,0.02414252,3317.6,3317.5,2.63552261]
[1642235012532,0.02414252,3317.6,3317.5,0.0580332]
[1642235013334,0.02414252,3317.6,3317.5,0.0233802]
[1642235013533,0.90474252,3317.6,3317.5,0.0233802]
[1642235013800,3.26664886,3317.6,3317.5,0.0233802]
[1642235014400,4.51829294,3317.6,3317.5,0.0233802]
[1642235015102,6.02613294,3317.6,3317.5,8.02e-05]
[1642235015403,4.77448886,3317.6,3317.5,8.02e-05]
[1642235016006,0.7539848,3317.4,3317.1,0.04607505]
[1642235016201,0.754,3317.2,3317.1,0.02425305]
[1642235016801,1.48568232,3317.1,3317.0,0.021822]
[1642235017001,3.54116315,3317.1,3316.8,0.021822]
[1642235017202,3.54116315,3317.1,3317.0,0.00568423]
[1642235017402,1.48568232,3317.1,3317.0,0.00568423]
[1642235017634,1.48568232,3317.1,3316.7,0.0073895]
[1642235018037,3.42934429,3317.1,3316.7,0.0073895]
[1642235018234,1.48568232,3317.1,3316.7,0.0073895]
[1642235018440,3.48162519,3317.1,3316.7,0.0073895]
[1642235018637,1.50805,3317.0,3316.7,0.0073895]
[1642235019034,1.50805,3317.0,3316.4,0.00909477]
[1642235019235,0.75405,3317.0,3316.4,0.00909477]
[1642235019636,0.75405,3317.0,3316.5,0.026529]
[1642235020034,0.75405,3317.0,3316.6,0.00795793]
[1642235020434,3.70412,3316.7,3316.6,0.00795793]
[1642235020638,0.75412,3316.7,3316.6,0.00795793]
[1642235020836,0.75412,3316.7,3316.4,0.00909477]
[1642235021033,0.75412,3316.6,3316.4,0.00909477]
[1642235021483,0.75412,3316.7,3316.3,0.0096632]
[1642235023887,1.51014189,3316.6,3316.3,0.0096632]
[1642235026040,0.00667373,3316.5,3316.3,0.0096632]
[1642235027837,0.33223084,3316.5,3316.3,0.0096632]
[1642235029088,0.75412,3316.4,3316.3,0.0096632]
[1642235030091,0.33223084,3316.5,3316.3,0.0096632]
[1642235031090,0.01808514,3316.4,3316.3,0.02868765]
[1642235033334,0.77220514,3316.4,3316.3,0.02868765]
[1642235034434,0.01808514,3316.4,3316.3,0.02868765]
[1642235036040,0.77888759,3316.4,3316.3,0.02868765]
[1642235037402,2.76619388,3316.4,3316.3,0.02868765]
[1642235039801,0.77888759,3316.4,3316.3,0.02868765]
[1642235040640,0.77888759,3316.4,3316.3,0.05221365]
[1642235041443,2.73718035,3316.4,3316.3,0.02868765]
[1642235042446,0.77888759,3316.4,3316.3,0.02868765]
[1642235042647,0.02476759,3316.4,3316.3,0.02868765]
[1642235043648,1.4816126,3316.3,3316.2,0.021822]
[1642235045885,1.4816126,3316.3,3316.2,0.03847159]
[1642235047289,1.4816126,3316.3,3316.2,0.01664959]
[1642235048437,1.4816126,3316.3,3316.2,0.04355583]
[1642235056444,1.4816126,3316.3,3316.2,0.07506383]
[1642235056945,1.4816126,3316.3,3316.2,0.06776683]
[1642235057643,1.4816126,3316.3,3316.2,2.62189934]
[1642235057846,1.4816126,3316.3,3316.2,2.64710134]
[1642235058445,1.4816126,3316.3,3316.2,0.06875783]
[1642235059497,1.4816126,3316.3,3316.2,2.64710171]
[1642235061198,1.4816126,3316.3,3316.2,0.06875783]
[1642235061798,1.4816126,3316.3,3316.2,0.04355583]
[1642235062203,1.4816126,3316.3,3316.2,2.6219032]
[1642235062642,1.4816126,3316.3,3316.2,2.6469882]
[1642235062842,1.4816126,3316.3,3316.2,0.06864083]
[1642235063942,1.4816126,3316.3,3316.2,2.64601249]
[1642235064341,1.4816126,3316.3,3316.2,2.62188849]
[1642235064543,1.4816126,3316.3,3316.2,0.04355583]
[1642235065441,1.4816126,3316.3,3316.2,0.07394783]
[1642235066298,1.4816126,3316.3,3316.2,0.04355583]
[1642235066492,1.4816126,3316.3,3316.2,2.64602106]
[1642235067794,1.4816126,3316.3,3316.2,0.06768883]
[1642235070947,1.4816126,3316.3,3316.2,0.04355583]
[1642235075003,1.4816126,3316.3,3316.2,0.07108483]
[1642235076005,1.4816126,3316.3,3316.2,2.64941605]
[1642235076806,1.4816126,3316.3,3316.2,0.07108483]
[1642235077408,1.4816126,3316.3,3316.2,2.64941815]
[1642235077643,1.4816126,3316.3,3316.2,2.64463715]
[1642235077848,1.4816126,3316.3,3316.2,2.62188915]
[1642235078045,1.4816126,3316.3,3316.2,0.07417483]
[1642235078844,1.4816126,3316.3,3316.2,2.65249604]
[1642235079547,1.4816126,3316.3,3316.2,4.59966585]
[1642235081597,0.02476759,3316.4,3316.2,4.59966585]
[1642235081797,0.02476759,3316.4,3316.3,2.03874514]
[1642235082895,0.02476759,3316.4,3316.3,4.61706635]
[1642235085840,0.02476759,3316.4,3316.3,4.63140653]
[1642235089296,0.02476759,3316.4,3316.3,4.49253168]
[1642235094150,0.02476759,3316.4,3316.3,1.91421047]
[1642235094352,0.02476759,3316.4,3316.3,0.05980318]
[1642235097700,0.02476759,3316.4,3316.3,0.01434018]
[1642235097899,0.02476759,3316.4,3316.3,0.04173918]
[1642235100247,0.02476759,3316.4,3316.3,0.01434018]
[1642235100647,0.02476759,3316.4,3316.3,0.07148818]
[1642235102050,0.02476759,3316.4,3316.3,0.01434018]
[1642235104093,0.02476759,3316.4,3316.3,0.03809918]
[1642235104294,0.02476759,3316.4,3316.3,0.08356218]
[1642235104495,0.02476759,3316.4,3316.3,0.03809918]
[1642235104695,0.02476759,3316.4,3316.3,0.06778818]
[1642235104896,0.02476759,3316.4,3316.3,0.01434018]
[1642235105194,0.02476759,3316.4,3316.3,0.04499818]
[1642235106197,0.02476759,3316.4,3316.3,0.03924918]
[1642235106695,0.02476759,3316.4,3316.3,0.04487218]
[1642235107098,0.02476759,3316.4,3316.3,0.01434018]
[1642235107943,0.02476759,3316.4,3316.3,0.04488918]
[1642235110843,0.02476759,3316.4,3316.3,0.01434018]
[1642235115650,1.97172018,3316.4,3316.3,0.01434018]
[1642235115850,0.02476759,3316.4,3316.3,0.01434018]
[1642235116050,0.02476759,3316.4,3316.1,0.021822]
[1642235116452,0.02476759,3316.4,3316.0,0.03616218]
[1642235116650,0.02476759,3316.4,3316.1,0.02734]
[1642235116853,0.02476759,3316.4,3316.1,0.02847684]
[1642235119697,2.00102002,3316.4,3316.1,0.02847684]
[1642235120897,2.00102002,3316.4,3316.3,0.01434018]
[1642235121198,0.02476759,3316.4,3316.3,0.01434018]
[1642235122399,0.77889759,3316.4,3316.3,0.01434018]
[1642235122850,0.02476759,3316.4,3316.3,0.01434018]
[1642235124050,0.77889759,3316.4,3316.3,0.01434018]
[1642235124656,2.80281863,3316.4,3316.3,0.01434018]
[1642235126054,3.55703863,3316.4,3316.1,0.01547702]
[1642235126301,0.7542276,3316.3,3316.1,0.01547702]
[1642235126499,5.71042192,3316.2,3316.1,0.01547702]
[1642235126902,5.71042192,3316.2,3316.1,7.702e-05]
[1642235127204,1.5103601,3316.0,3315.7,0.021822]
[1642235127403,0.75427,3315.9,3315.6,0.021822]
[1642235127603,0.75427,3315.9,3315.8,0.00170527]
[1642235128204,2.69799574,3315.9,3315.8,0.00170527]
[1642235129606,0.75427,3315.9,3315.8,0.00170527]
[1642235129808,2.71365009,3315.9,3315.8,0.00170527]
[1642235130058,2.73096074,3315.9,3315.8,0.00170527]
[1642235130247,0.75427,3315.9,3315.8,0.00170527]
[1642235130647,2.74128938,3315.9,3315.8,0.00170527]
[1642235131047,2.76380463,3315.9,3315.8,0.01291894]
[1642235131448,0.77678525,3315.9,3315.8,0.01291894]
[1642235132453,0.02251525,3315.9,3315.8,0.01291894]
[1642235133451,0.02251525,3315.9,3315.8,0.03996169]
[1642235133650,0.02251525,3315.9,3315.8,0.06227769]
[1642235133902,0.02251525,3315.9,3315.8,0.09207069]
[1642235134099,0.02251525,3315.9,3315.8,0.03996169]
[1642235137202,0.02251525,3315.9,3315.8,0.06370669]
[1642235144199,0.02251525,3315.9,3315.8,0.03996169]
[1642235145255,0.02251525,3315.9,3315.8,0.08542469]
[1642235145756,0.02251525,3315.9,3315.8,0.03996169]
[1642235149599,0.02251525,3315.9,3315.8,0.06921069]
[1642235149798,0.02251525,3315.9,3315.8,0.03996169]
[1642235151701,0.35812533,3315.9,3315.8,0.03996169]
[1642235152100,1.11238533,3315.9,3315.8,0.03996169]
[1642235154052,3.09040551,3315.9,3315.8,0.03996169]
[1642235154252,1.11238533,3315.9,3315.8,0.03996169]
[1642235155853,0.35812533,3315.9,3315.8,0.03996169]
[1642235162255,6.80432362,3315.9,3315.8,0.03996169]
[1642235163356,4.76243533,3315.9,3315.8,0.03996169]
[1642235166413,1.11243533,3315.9,3315.8,0.03996169]
[1642235166713,0.35812533,3315.9,3315.8,0.03996169]
[1642235168158,1.11241533,3315.9,3315.8,0.03996169]
[1642235169961,0.35812533,3315.9,3315.8,0.08542469]
[1642235170163,0.02251525,3315.9,3315.8,0.08542469]
[1642235173210,0.02251525,3315.9,3315.8,0.03996169]
[1642235173607,0.02251525,3315.9,3315.8,0.08941569]
[1642235174406,0.02251525,3315.9,3315.8,0.03996169]
[1642235174806,0.02251525,3315.9,3315.8,0.07170869]
[1642235175455,0.02251525,3315.9,3315.8,0.03996169]
[1642235175657,0.02251525,3315.9,3315.8,0.06783769]
[1642235176056,0.02034763,3315.9,3315.8,0.06783769]
[1642235187507,0.02034763,3315.9,3315.8,2.64654105]
[1642235187705,0.02034763,3315.9,3315.8,4.51046017]
[1642235187906,0.02034763,3315.9,3315.8,2.64654105]
[1642235188506,0.02034763,3315.9,3315.8,0.06783769]
[1642235189106,0.02034763,3315.9,3315.8,2.64654105]
[1642235193258,0.02034763,3315.9,3315.8,2.61866505]
[1642235193907,0.02034763,3315.9,3315.8,0.06688869]
[1642235194106,0.02034763,3315.9,3315.8,0.03996169]
[1642235194309,0.02034763,3315.9,3315.8,0.07388969]
[1642235195406,0.02034763,3315.9,3315.8,0.03996169]
[1642235195808,0.02034763,3315.9,3315.8,2.61869937]
[1642235196009,0.02034763,3315.9,3315.8,2.64603537]
[1642235196209,0.02034763,3315.9,3315.8,2.61869937]
[1642235196409,0.02034763,3315.9,3315.8,0.08542469]
[1642235196612,0.02034763,3315.9,3315.8,0.03996169]
[1642235197961,0.02034763,3315.9,3315.8,0.07716869]
[1642235198961,0.02034763,3315.9,3315.8,2.65590415]
[1642235199161,0.02034763,3315.9,3315.8,2.61869715]
[1642235199561,0.02034763,3315.9,3315.8,0.03996169]
[1642235200863,0.02034763,3315.9,3315.8,0.08240669]
[1642235201063,0.02034763,3315.9,3315.8,0.08542469]
[1642235203810,0.02034763,3315.9,3315.8,2.6641382]
[1642235204014,0.02034763,3315.9,3315.8,2.6186752]
[1642235204611,0.02034763,3315.9,3315.8,0.03996169]
[1642235205260,0.02034763,3315.9,3315.8,0.06859369]
[1642235205555,0.02034763,3315.9,3315.8,0.06284269]
[1642235205755,0.02034763,3315.9,3315.8,0.03996169]
[1642235206355,0.02034763,3315.9,3315.8,0.06200469]
[1642235207156,0.02034763,3315.9,3315.8,0.09051769]
[1642235208807,0.02034763,3315.9,3315.8,0.06200469]
[1642235209610,0.02034763,3315.9,3315.8,0.10492669]
[1642235209808,0.02034763,3315.9,3315.8,0.06200469]
[1642235210009,0.02034763,3315.9,3315.8,0.10113869]
[1642235211408,0.02034763,3315.9,3315.8,0.06200469]
[1642235211810,0.02034763,3315.9,3315.8,0.08961569]
[1642235213059,0.02034763,3315.9,3315.8,0.06200469]
[1642235213262,0.02034763,3315.9,3315.8,0.10569569]
[1642235219912,0.02034763,3315.9,3315.8,0.13410169]
[1642235220161,0.02034763,3315.9,3315.8,0.12446669]
[1642235220359,0.02034763,3315.9,3315.8,0.14216969]
[1642235220557,0.02034763,3315.9,3315.8,0.15511469]
[1642235220759,0.02034763,3315.9,3315.8,0.11376369]
[1642235220963,0.02034763,3315.9,3315.8,0.07401769]
[1642235221162,0.02034763,3315.9,3315.8,0.11580869]
[1642235223565,0.02034763,3315.9,3315.8,0.11410469]
[1642235224409,0.02034763,3315.9,3315.8,0.15956769]
[1642235225008,0.02034763,3315.9,3315.8,0.03996169]
[1642235225209,0.02034763,3315.9,3315.8,0.06914769]
[1642235225610,0.02034763,3315.9,3315.8,0.15335369]
[1642235233310,0.02034763,3315.9,3315.8,0.10789069]
[1642235233512,0.02034763,3315.9,3315.8,0.14924169]
[1642235234915,0.02034763,3315.9,3315.8,0.03996169]
[1642235235965,0.02034763,3315.9,3315.8,0.12643969]
[1642235236568,0.02034763,3315.9,3315.8,0.06317869]
[1642235236764,0.02034763,3315.9,3315.8,0.03996169]
[1642235239610,0.02034763,3315.9,3315.8,0.06459169]
[1642235239810,0.02034763,3315.9,3315.8,0.03996169]
[1642235240209,0.02034763,3315.9,3315.8,0.08542469]
[1642235241012,0.02034763,3315.9,3315.8,0.03996169]
[1642235242311,0.02034763,3315.9,3315.8,0.06307269]
[1642235242577,0.02034763,3315.9,3315.8,0.03996169]
[1642235243178,0.02034763,3315.9,3315.8,0.08542469]
[1642235245177,0.02034763,3315.9,3315.8,0.03996169]
[1642235245577,0.02034763,3315.9,3315.8,0.06632769]
[1642235249413,0.02034763,3315.9,3315.8,0.03996169]
[1642235249617,0.02034763,3315.9,3315.8,0.07183069]
[1642235250280,0.02034763,3315.9,3315.8,0.03996169]
[1642235251381,0.02034763,3315.9,3315.8,0.10060969]
[1642235251581,0.02034763,3315.9,3315.8,0.09549569]
[1642235254620,0.02034763,3315.9,3315.8,2.67412128]
[1642235255819,0.02034763,3315.9,3315.8,4.89881903]
[1642235258665,0.02034763,3315.9,3315.8,4.86699203]
[1642235258964,0.02034763,3315.9,3315.8,4.56944136]
[1642235259365,0.02034763,3315.9,3315.8,1.99081577]
[1642235259567,0.02034763,3315.9,3315.8,0.10913169]
[1642235262316,0.02034763,3315.9,3315.8,2.21864274]
[1642235262722,0.02034763,3315.9,3315.8,0.10913169]
[1642235265869,0.01542082,3315.9,3315.8,0.10913169]
[1642235266071,0.02034763,3315.9,3315.8,0.10913169]
[1642235269320,0.02034763,3315.9,3315.8,17.75913169]
[1642235270110,0.02034763,3315.9,3315.8,0.10913169]
[1642235270913,0.02034763,3315.9,3315.8,2.68760858]
[1642235271113,0.00492681,3315.9,3315.8,4.55539774]
[1642235271513,0.00492681,3315.9,3315.8,2.68760858]
[1642235271713,0.00492681,3315.9,3315.8,1.92975113]
[1642235271915,0.00492681,3315.9,3315.8,0.10913169]
[1642235276061,0.01897828,3315.9,3315.8,0.10913169]
[1642235276713,0.01897828,3315.9,3315.8,2.1254411]
[1642235277115,0.01897828,3315.9,3315.8,4.70392827]
[1642235277917,0.01897828,3315.9,3315.8,22.35392827]
[1642235283385,0.01897828,3315.9,3315.8,4.70392827]
[1642235285917,0.01897828,3315.9,3315.8,2.1254411]
[1642235286118,0.01897828,3315.9,3315.8,0.10913169]
[1642235287119,0.01897828,3315.9,3315.8,2.68753971]
[1642235287318,0.01897828,3315.9,3315.8,4.78908385]
[1642235289368,0.01897828,3315.9,3315.8,2.68753971]
[1642235289567,0.01897828,3315.9,3315.8,4.54642158]
[1642235290970,0.01897828,3315.9,3315.8,4.54666909]
[1642235292414,0.01897828,3315.9,3315.8,2.68753971]
[1642235297275,0.01897828,3315.9,3315.8,2.61836971]
[1642235301119,0.01897828,3315.9,3315.8,2.62159945]
[1642235303263,0.01897828,3315.9,3315.8,2.64799145]
[1642235303464,0.01897828,3315.9,3315.8,2.68098245]
[1642235305667,0.01897828,3315.9,3315.8,2.62159945]
[1642235307117,1.37933838,3316.0,3315.8,2.62159945]
[1642235307317,0.76676477,3316.8,3315.8,2.62159945]
[1642235307518,0.75413,3316.6,3315.9,1.55003152]
[1642235308117,1.51025463,3316.4,3315.9,1.55003152]
[1642235308519,0.00113684,3316.3,3315.9,1.57704014]
[1642235310777,0.00113684,3316.3,3315.9,1.60815214]
[1642235310980,0.0079779,3316.2,3316.1,0.0148091]
[1642235313184,0.0079779,3316.2,3316.1,0.0602721]
[1642235313384,0.0079779,3316.2,3316.1,0.08721247]
[1642235313817,0.0079779,3316.2,3316.1,0.06511347]
[1642235314611,0.0079779,3316.2,3316.1,0.09426447]
[1642235315212,0.0079779,3316.2,3316.1,0.06511347]
[1642235315412,0.0079779,3316.2,3316.1,0.04174947]
[1642235316813,0.0079779,3316.2,3316.1,0.07142347]
[1642235317019,0.0079779,3316.2,3316.1,0.04174947]
[1642235317414,0.0079779,3316.2,3316.1,0.06949847]
[1642235319070,0.0079779,3316.2,3316.1,0.04174947]
[1642235319868,0.0079779,3316.2,3316.1,0.07037047]
[1642235320470,0.0079779,3316.2,3316.1,0.04174947]
[1642235322816,0.0079779,3316.2,3316.1,0.07040347]
[1642235323417,0.0079779,3316.2,3316.1,0.07058447]
[1642235324630,0.0079779,3316.2,3316.1,0.10620147]
[1642235324820,0.0079779,3316.2,3316.1,0.07058447]
[1642235325067,0.0079779,3316.2,3316.1,0.11604747]
[1642235331115,7.55397599,3317.2,3316.1,0.11604747]
[1642235331116,2.61093737,3317.7,3316.2,5.3]
[1642235331318,2.0466847,3317.6,3316.7,0.041351]
[1642235331523,0.00341054,3316.9,3316.8,0.039103]
[1642235331718,0.00341054,3316.9,3316.6,0.021822]
[1642235331919,2.14869372,3317.8,3316.6,0.028781]
[1642235332119,1.46876679,3316.7,3316.2,2.75]
[1642235332564,0.00170527,3316.6,3316.2,2.75]
[1642235332966,0.00113685,3316.5,3316.2,2.75]
[1642235333365,0.00170527,3316.6,3316.2,2.75]
[1642235333865,0.00113685,3316.5,3316.2,2.75]
[1642235334266,0.00170527,3316.6,3316.2,2.75]
[1642235334666,1.46876679,3316.7,3316.2,2.75]
[1642235334667,0.00113685,3316.5,3316.2,2.75]
[1642235335065,0.00170527,3316.6,3316.2,2.75]
[1642235335470,0.00113685,3316.5,3316.2,2.75]
[1642235335865,0.00170527,3316.6,3316.2,2.75]
[1642235336067,0.00664671,3316.5,3316.4,0.01299935]
[1642235336322,0.00778356,3316.5,3316.4,0.01299935]
[1642235337517,0.00778356,3316.5,3316.4,1.24898942]
[1642235337922,1.42655035,3316.7,3316.4,1.24898942]
[1642235341067,0.00554007,3316.6,3316.4,1.24933849]
[1642235341869,0.00554007,3316.6,3316.5,2.57829118]
[1642235343075,0.00554007,3316.6,3316.4,1.24933849]
[1642235345819,0.00554007,3316.6,3316.5,0.01355112]
[1642235346416,1.40709042,3316.7,3316.5,0.01355112]
[1642235350973,1.40709042,3316.7,3316.6,0.01183403]
[1642235351417,1.40822727,3316.7,3316.6,0.01183403]
[1642235355968,1.40822727,3316.7,3316.6,0.02391103]
[1642235358469,1.35807689,3316.7,3316.6,0.02391103]
[1642235361023,1.35807689,3316.7,3316.6,0.03575484]
[1642235363970,1.35807689,3316.7,3316.6,2.61394841]
[1642235364770,1.35807689,3316.7,3316.6,0.03575484]
[1642235365571,1.35807689,3316.7,3316.6,2.61394841]
[1642235365972,1.35007689,3316.7,3316.6,2.59020271]
[1642235373920,1.35007689,3316.7,3316.6,0.01200914]
[1642235375921,1.35007689,3316.7,3316.5,0.03567734]
[1642235376122,1.35007689,3316.7,3316.6,2.57823918]
[1642235377573,1.35007689,3316.7,3316.5,0.03567734]
[1642235378173,1.35007689,3316.7,3316.6,2.57824609]
[1642235379176,1.35007689,3316.7,3316.5,0.03567734]
[1642235379880,1.35007689,3316.7,3316.6,2.57825628]
[1642235380978,1.35007689,3316.7,3316.6,2.59026542]
[1642235381417,1.34894004,3316.7,3316.6,2.59026542]
[1642235382020,1.34894004,3316.7,3316.6,0.01200914]
[1642235384524,1.34894004,3316.7,3316.6,2.59026255]
[1642235385069,1.34894004,3316.7,3316.6,0.01200914]
[1642235385670,1.34894004,3316.7,3316.6,2.59026255]
[1642235385871,1.34894004,3316.7,3316.6,4.778549]
[1642235386270,1.24,3318.4,3317.9,1.25026868]
[1642235386471,3.7164,3318.7,3317.9,1.25026868]
[1642235386670,1.30767198,3318.9,3317.9,1.25026868]
[1642235386671,0.00852635,3318.0,3317.9,1.25026868]
[1642235387079,0.01307374,3318.8,3317.9,1.25026868]
[1642235387477,0.31919481,3318.6,3317.9,1.25026868]
[1642235387672,0.31919481,3318.6,3317.5,1.67004163]
[1642235387873,0.01136847,3318.5,3317.9,1.40535981]
[1642235388274,0.01080005,3318.4,3317.5,2.90824163]
[1642235388472,0.01080005,3318.4,3317.4,3.65731903]
[1642235388672,0.01023162,3318.3,3317.4,3.65731903]
[1642235389118,0.0096632,3318.2,3317.5,1.73969375]
[1642235389319,1.51909716,3318.2,3317.5,3.22230023]
[1642235389625,0.00909478,3318.1,3317.5,1.48260648]
[1642235389819,0.00909478,3318.1,3317.5,3.22192772]
[1642235391020,0.00909478,3318.1,3317.7,0.01256038]
[1642235393371,1.50959477,3317.8,3317.7,0.01256038]
[1642235393773,1.51698428,3317.8,3317.7,0.01256038]
[1642235395879,7.4718,3319.1,3317.7,0.01256038]
[1642235395880,7.4718,3319.1,3317.7,5.56256038]
[1642235396078,3.1719228,3319.6,3317.8,3.23076829]
[1642235396332,3.1719228,3319.6,3317.9,7.5267]
[1642235396333,0.00397896,3318.5,3317.9,7.5267]
[1642235396522,0.00397896,3318.5,3318.0,2.10075265]
[1642235396721,1.1582,3319.6,3318.0,2.10075265]
[1642235396722,1.50947953,3318.1,3318.0,2.10075265]
[1642235397021,1.5111848,3318.1,3318.0,3.60425319]
[1642235397425,0.00170527,3318.1,3318.0,3.60425319]
[1642235398022,0.00170527,3318.1,3318.0,6.18169753]
[1642235399325,0.00170527,3318.1,3318.0,4.08094488]
[1642235400174,0.00170527,3318.1,3318.0,3.30687468]
[1642235400370,0.00170527,3318.1,3318.0,1.50350054]
[1642235400977,0.00170527,3318.1,3318.0,1.55321524]
[1642235401372,0.00170527,3318.1,3318.0,0.18791467]
[1642235401576,0.00170527,3318.1,3318.0,0.0497147]
[1642235402175,0.04716827,3318.1,3318.0,0.0497147]
[1642235403375,1.45990156,3317.8,3317.3,1.219]
[1642235403576,0.033214,3317.4,3317.3,1.219]
[1642235403858,1.99210701,3317.7,3317.2,3.8079]
[1642235404054,1.99210701,3317.7,3316.8,1.163]
[1642235404452,1.99210701,3317.7,3317.3,1.37928447]
[1642235405354,1.50979859,3317.4,3317.3,1.37928447]
[1642235406652,1.50979859,3317.4,3316.8,1.163]
[1642235406853,1.98602988,3317.3,3316.8,1.163]
[1642235407052,1.50979859,3317.4,3316.9,0.00511582]
[1642235407877,1.50979859,3317.4,3317.0,2.57789825]
[1642235408278,1.50979859,3317.4,3317.1,0.00397897]
[1642235409477,0.73923882,3317.2,3317.1,0.00397897]
[1642235410982,0.74982045,3317.2,3317.1,0.01976445]
[1642235411938,2.80720853,3317.2,3317.1,0.01976445]
[1642235412131,3.06530853,3317.2,3317.1,0.01976445]
[1642235412334,5.55,3317.1,3315.8,8.9026]
[1642235412530,5.55,3317.1,3315.8,6.75597975]
[1642235412730,5.55,3317.1,3316.0,1.44167612]
[1642235412935,0.754101,3316.8,3316.0,1.44167612]
[1642235413132,0.75408,3316.7,3316.1,0.00568423]
[1642235413331,1.5101634,3316.6,3316.1,0.00568423]
[1642235414732,0.36961941,3316.4,3316.1,0.00568423]
[1642235414934,0.36961941,3316.4,3316.2,2.5784288]
[1642235414935,0.73923882,3316.4,3316.2,2.5784288]
[1642235415380,0.73923882,3316.4,3316.3,0.00454739]
[1642235416181,0.73923882,3316.4,3316.3,0.01856893]
[1642235417283,1.49337882,3316.4,3316.3,0.01856893]
[1642235418682,0.73923882,3316.4,3316.3,0.01856893]
[1642235421125,0.74869765,3316.4,3316.3,0.01856893]
[1642235421527,1.50283765,3316.4,3316.3,0.01856893]
[1642235421727,3.53519742,3316.4,3316.3,0.01856893]
[1642235422585,1.50283765,3316.4,3316.3,0.01856893]
[1642235423184,1.49177631,3316.2,3315.4,1.2156]
[1642235423585,1.49177631,3316.2,3315.5,0.00454738]
[1642235423785,0.36961941,3315.8,3315.5,0.00454738]
[1642235424385,0.36961941,3315.8,3315.5,2.58305898]
[1642235424790,0.36961941,3315.8,3315.6,0.00397896]
[1642235425387,0.36961941,3315.8,3315.6,2.58249056]
[1642235425787,0.36961941,3315.8,3315.7,0.00341054]
[1642235425991,0.37908408,3315.8,3315.7,0.01569856]
[1642235427839,0.37908408,3315.8,3315.7,2.59421016]
[1642235428439,0.37908408,3315.8,3315.7,2.62128704]
[1642235429338,0.74870349,3315.8,3315.7,2.62128704]
[1642235432891,0.3469454,3315.8,3315.7,7.82128704]
[1642235433095,0.3469454,3315.8,3315.7,2.62128704]
[1642235434123,0.00390286,3315.9,3315.7,2.62128704]
[1642235434523,0.00390286,3315.9,3315.8,0.00284211]
[1642235435124,0.00390286,3315.9,3315.8,2.58135371]
[1642235436024,0.00728052,3315.9,3315.8,2.59212803]
[1642235438378,0.00728052,3315.9,3315.8,2.61917078]
[1642235439379,0.00728052,3315.9,3315.8,0.04065918]
[1642235439579,0.35422592,3315.9,3315.8,0.04065918]
[1642235439980,0.35422592,3315.9,3315.8,5.09065918]
[1642235440181,0.35422592,3315.9,3315.8,7.6690393]
[1642235440981,0.35734596,3315.9,3315.8,7.6690393]
[1642235444331,0.35734596,3315.9,3315.8,2.6190393]
[1642235445982,0.35445346,3315.9,3315.8,2.62173289]
[1642235448833,0.35445346,3315.9,3315.8,0.04335277]
[1642235449831,0.35445346,3315.9,3315.8,3.64335277]
[1642235450831,0.35445346,3315.9,3315.8,0.04335277]
[1642235451031,0.35445346,3315.9,3315.8,2.62167831]
[1642235455481,0.35445346,3315.9,3315.8,0.04335277]
[1642235457631,0.35445346,3315.9,3315.8,2.62189111]
[1642235464435,0.35445346,3315.9,3315.8,2.619049]
[1642235466134,0.35445346,3315.9,3315.8,2.594049]
[1642235468382,0.35445346,3315.9,3315.8,2.58123193]
[1642235469183,0.35445346,3315.9,3315.8,0.00269359]
[1642235469583,0.35445346,3315.9,3315.8,2.58123193]
[1642235470584,0.35445346,3315.9,3315.8,0.00269359]
[1642235471183,0.35445346,3315.9,3315.6,0.03939912]
[1642235471184,0.35805702,3315.9,3315.6,0.03939912]
[1642235471430,0.35805702,3315.9,3315.7,2.57853834]
[1642235471630,0.01111162,3315.9,3315.7,2.58194888]
[1642235471831,0.3469454,3315.8,3315.7,2.58194888]
[1642235476086,0.3469454,3315.8,3315.7,2.59407319]
[1642235480136,0.3469454,3315.8,3315.7,2.54407319]
[1642235486337,0.3469454,3315.8,3315.7,3.92444227]
[1642235486534,0.3469454,3315.8,3315.7,5.44407319]
[1642235487132,0.3469454,3315.8,3315.7,6.78500951]
[1642235487333,0.3469454,3315.8,3315.7,5.44407319]
[1642235487735,0.3469454,3315.8,3315.7,6.76833005]
[1642235487935,0.3469454,3315.8,3315.7,5.44407319]
[1642235489033,0.3469454,3315.8,3315.7,6.7659528]
[1642235489435,0.3469454,3315.8,3315.7,5.44407319]
[1642235491289,0.3469454,3315.8,3315.7,6.79380462]
[1642235492086,0.3469454,3315.8,3315.7,24.44380462]
[1642235492688,1.1787,3317.5,3315.9,5.55]
[1642235492989,0.00568424,3317.3,3316.8,0.036637]
[1642235493186,0.00568424,3317.3,3317.1,0.030772]
[1642235493386,0.01248529,3318.6,3317.1,0.030772]
[1642235493387,0.00511582,3317.2,3317.1,3.780772]
[1642235493586,1.5150056,3317.2,3317.1,6.12179007]
[1642235493842,1.5150056,3317.2,3317.1,8.64721528]
[1642235494835,0.00511582,3317.2,3317.1,8.64721528]
[1642235495635,0.00511582,3317.2,3317.1,4.89721528]
[1642235496035,0.00950022,3317.2,3317.1,4.90873103]
[1642235496836,0.00950022,3317.2,3317.1,10.45873103]
[1642235496837,0.00090022,3317.2,3317.1,10.45873103]
[1642235497037,0.00090022,3317.2,3317.1,26.8579548]
[1642235497237,0.00090022,3317.2,3317.1,25.58330582]
[1642235497238,2.2e-07,3317.2,3317.1,25.58330582]
[1642235497439,2.2e-07,3317.2,3317.1,29.18610582]
[1642235497692,0.0128257,3319.9,3317.9,17.662855]
[1642235497893,8.5778,3320.6,3318.8,0.038669]
[1642235497894,1.50906951,3319.0,3318.8,0.038669]
[1642235498095,0.01331058,3319.7,3319.2,1.27980022]